[Event "Titled Tuesday Blitz January 10 Early 2023"]
[White "Levitan, Caleb Levi"]
[Black "Lehtosaari, Mauri"]
[WhiteFideId "14332620"]
[BlackFideId "501999"]
[WhiteElo "2129"]
[BlackElo "2176"]
[Result "1-0"]
[Round "02"]
[TimeControl "180+2"]
[Date "2023.01.10"]
[WhiteClock "0:00:22"]
[BlackClock "0:00:18"]

1. e4 {[%clk 0:03:00]}  c5 {[%clk 0:02:58]} 2. Nf3 {[%clk 0:03:01]}  e6 {[%clk 0:02:59]} 3. d4 {[%clk 0:03:00]}  cxd4 {[%clk 0:03:00]} 4. Nxd4 {[%clk 0:03:00]}  Nc6 {[%clk 0:03:00]} 5. Nc3 {[%clk 0:03:00]}  Qc7 {[%clk 0:02:59]} 6. Nxc6 {[%clk 0:03:00]}  bxc6 {[%clk 0:02:59]} 7. Bd3 {[%clk 0:03:01]}  d5 {[%clk 0:02:59]} 8. O-O {[%clk 0:02:55]}  Nf6 {[%clk 0:02:59]} 9. f4 {[%clk 0:02:54]}  dxe4 {[%clk 0:02:33]} 10. Nxe4 {[%clk 0:02:52]}  Be7 {[%clk 0:02:26]} 11. Qf3 {[%clk 0:02:45]}  O-O {[%clk 0:02:20]} 12. b3 {[%clk 0:02:26]}  Nxe4 {[%clk 0:02:14]} 13. Qxe4 {[%clk 0:02:25]}  f5 {[%clk 0:02:03]} 14. Qe2 {[%clk 0:02:16]}  Bf6 {[%clk 0:02:01]} 15. Rb1 {[%clk 0:02:15]}  Qd6 {[%clk 0:01:35]} 16. Be3 {[%clk 0:01:31]}  a5 {[%clk 0:01:19]} 17. Qf2 {[%clk 0:01:24]}  Re8 {[%clk 0:01:15]} 18. Rbd1 {[%clk 0:01:22]}  Qb8 {[%clk 0:01:07]} 19. Bd4 {[%clk 0:01:08]}  Bxd4 {[%clk 0:00:59]} 20. Qxd4 {[%clk 0:01:08]}  Qa7 {[%clk 0:01:00]} 21. Qxa7 {[%clk 0:01:05]}  Rxa7 {[%clk 0:01:01]} 22. Bc4 {[%clk 0:01:05]}  a4 {[%clk 0:00:57]} 23. Rd6 {[%clk 0:01:03]}  axb3 {[%clk 0:00:53]} 24. axb3 {[%clk 0:00:58]}  Rc7 {[%clk 0:00:53]} 25. Kf2 {[%clk 0:00:38]}  Kf7 {[%clk 0:00:52]} 26. Rfd1 {[%clk 0:00:37]}  Ke7 {[%clk 0:00:42]} 27. b4 {[%clk 0:00:27]}  Bd7 {[%clk 0:00:34]} 28. b5 {[%clk 0:00:20]}  cxb5 {[%clk 0:00:31]} 29. Rxd7+ {[%clk 0:00:20]}  Rxd7 {[%clk 0:00:29]} 30. Rxd7+ {[%clk 0:00:21]}  Kxd7 {[%clk 0:00:29]} 31. Bxb5+ {[%clk 0:00:22]}  Ke7 {[%clk 0:00:29]} 32. Bxe8 {[%clk 0:00:23]}  Kxe8 {[%clk 0:00:30]} 33. Ke3 {[%clk 0:00:23]}  Kd7 {[%clk 0:00:27]} 34. Kd4 {[%clk 0:00:24]}  Kd6 {[%clk 0:00:27]} 35. c4 {[%clk 0:00:24]}  g5 {[%clk 0:00:25]} 36. c5+ {[%clk 0:00:23]}  Kc6 {[%clk 0:00:26]} 37. fxg5 {[%clk 0:00:23]}  f4 {[%clk 0:00:20]} 38. Ke5 {[%clk 0:00:23]}  Kxc5 {[%clk 0:00:21]} 39. Kxe6 {[%clk 0:00:22]}  Kd4 {[%clk 0:00:21]} 40. Kf5 {[%clk 0:00:22]}  Ke3 {[%clk 0:00:21]} 41. h4 {[%clk 0:00:22]}  f3 {[%clk 0:00:17]} 42. gxf3 {[%clk 0:00:22]}  Kxf3 {[%clk 0:00:18]} 43. h5 {[%clk 0:00:22]} 1-0


[Site "https://www.chess.com"]

[Event "Titled Tuesday Blitz January 10 Early 2023"]
[White "Berezin, Viktor"]
[Black "Martinez, Shawn"]
[WhiteFideId "14107872"]
[BlackFideId "2039770"]
[WhiteElo "2307"]
[BlackElo "1881"]
[Result "1-0"]
[Round "02"]
[TimeControl "180+2"]
[Date "2023.01.10"]
[WhiteClock "0:00:14"]
[BlackClock "0:00:17"]

1. d4 {[%clk 0:03:00]}  g6 {[%clk 0:02:58]} 2. Nf3 {[%clk 0:02:58]}  Bg7 {[%clk 0:02:57]} 3. g3 {[%clk 0:02:59]}  d6 {[%clk 0:02:55]} 4. Bg2 {[%clk 0:02:59]}  Nd7 {[%clk 0:02:56]} 5. O-O {[%clk 0:02:59]}  Ngf6 {[%clk 0:02:55]} 6. Nc3 {[%clk 0:03:00]}  a6 {[%clk 0:02:55]} 7. a4 {[%clk 0:03:00]}  O-O {[%clk 0:02:54]} 8. a5 {[%clk 0:03:00]}  c5 {[%clk 0:02:53]} 9. d5 {[%clk 0:03:00]}  Rb8 {[%clk 0:02:51]} 10. Nd2 {[%clk 0:03:00]}  b5 {[%clk 0:02:51]} 11. axb6 {[%clk 0:03:01]}  Nxb6 {[%clk 0:02:51]} 12. h3 {[%clk 0:03:00]}  Bb7 {[%clk 0:02:48]} 13. Nb3 {[%clk 0:02:58]}  e6 {[%clk 0:02:36]} 14. dxe6 {[%clk 0:02:56]}  fxe6 {[%clk 0:02:35]} 15. Bxb7 {[%clk 0:02:53]}  Rxb7 {[%clk 0:02:35]} 16. Rxa6 {[%clk 0:02:54]}  Nbd5 {[%clk 0:02:17]} 17. Bg5 {[%clk 0:02:45]}  Nxc3 {[%clk 0:02:09]} 18. bxc3 {[%clk 0:02:43]}  Rd7 {[%clk 0:02:09]} 19. c4 {[%clk 0:02:39]}  h6 {[%clk 0:02:07]} 20. Bxf6 {[%clk 0:02:37]}  Bxf6 {[%clk 0:02:06]} 21. Qd2 {[%clk 0:02:36]}  Kg7 {[%clk 0:02:06]} 22. Rd1 {[%clk 0:02:34]}  Be7 {[%clk 0:02:05]} 23. Nxc5 {[%clk 0:02:28]}  Rf6 {[%clk 0:02:00]} 24. Nxd7 {[%clk 0:02:23]}  Qxd7 {[%clk 0:02:00]} 25. Qe3 {[%clk 0:02:21]}  Qc8 {[%clk 0:01:52]} 26. Ra7 {[%clk 0:02:19]}  Rf7 {[%clk 0:01:53]} 27. Rb1 {[%clk 0:01:54]}  g5 {[%clk 0:01:41]} 28. Rbb7 {[%clk 0:01:43]}  Kf8 {[%clk 0:01:41]} 29. Qb3 {[%clk 0:01:24]}  Qc5 {[%clk 0:01:36]} 30. Qe3 {[%clk 0:01:14]}  Qxc4 {[%clk 0:01:32]} 31. Rc7 {[%clk 0:01:05]}  Qd5 {[%clk 0:01:27]} 32. c4 {[%clk 0:01:02]}  Qf5 {[%clk 0:01:23]} 33. Kg2 {[%clk 0:01:01]}  h5 {[%clk 0:01:20]} 34. Rc8+ {[%clk 0:00:56]}  Kg7 {[%clk 0:01:19]} 35. Rcc7 {[%clk 0:00:56]}  Kf8 {[%clk 0:01:18]} 36. Rcb7 {[%clk 0:00:37]}  Qf6 {[%clk 0:01:08]} 37. Rb5 {[%clk 0:00:30]}  Kg7 {[%clk 0:01:03]} 38. Rab7 {[%clk 0:00:24]}  Kf8 {[%clk 0:00:59]} 39. Rb8+ {[%clk 0:00:24]}  Kg7 {[%clk 0:00:59]} 40. Rb3 {[%clk 0:00:24]}  Qg6 {[%clk 0:00:56]} 41. Qd3 {[%clk 0:00:21]}  Qf6 {[%clk 0:00:55]} 42. Qe3 {[%clk 0:00:21]}  Qg6 {[%clk 0:00:55]} 43. R8b7 {[%clk 0:00:22]}  Qf5 {[%clk 0:00:48]} 44. R3b5 {[%clk 0:00:22]}  e5 {[%clk 0:00:45]} 45. Ra5 {[%clk 0:00:19]}  g4 {[%clk 0:00:42]} 46. h4 {[%clk 0:00:18]}  Qc8 {[%clk 0:00:39]} 47. Raa7 {[%clk 0:00:18]}  Qe6 {[%clk 0:00:39]} 48. Qe4 {[%clk 0:00:16]}  Qf6 {[%clk 0:00:38]} 49. Qe3 {[%clk 0:00:16]}  Qe6 {[%clk 0:00:38]} 50. Rc7 {[%clk 0:00:16]}  Qf6 {[%clk 0:00:37]} 51. Rc6 {[%clk 0:00:16]}  Qf5 {[%clk 0:00:34]} 52. Raa6 {[%clk 0:00:14]}  Qe6 {[%clk 0:00:33]} 53. c5 {[%clk 0:00:14]}  Qd5+ {[%clk 0:00:31]} 54. Kh2 {[%clk 0:00:15]}  dxc5 {[%clk 0:00:20]} 55. Qh6+ {[%clk 0:00:14]}  Kg8 {[%clk 0:00:17]} 56. Rg6+ {[%clk 0:00:14]} 1-0


[Site "https://www.chess.com"]

[Event "Titled Tuesday Blitz January 10 Early 2023"]
[White "Afanasieva, Alexandra"]
[Black "Baches Garcia, Guillermo"]
[WhiteFideId "34126926"]
[BlackFideId "2209764"]
[WhiteElo "1857"]
[BlackElo "2327"]
[Result "1/2-1/2"]
[Round "02"]
[TimeControl "180+2"]
[Date "2023.01.10"]
[WhiteClock "0:00:07"]
[BlackClock "0:00:16"]

1. e4 {[%clk 0:03:00]}  c5 {[%clk 0:02:59]} 2. Nf3 {[%clk 0:03:00]}  d6 {[%clk 0:03:00]} 3. d4 {[%clk 0:02:59]}  cxd4 {[%clk 0:03:01]} 4. Nxd4 {[%clk 0:03:00]}  Nf6 {[%clk 0:03:01]} 5. f3 {[%clk 0:02:56]}  e5 {[%clk 0:03:00]} 6. Nb3 {[%clk 0:02:54]}  d5 {[%clk 0:03:00]} 7. Bg5 {[%clk 0:02:54]}  d4 {[%clk 0:03:00]} 8. c3 {[%clk 0:02:24]}  Nc6 {[%clk 0:03:00]} 9. Bb5 {[%clk 0:02:16]}  h6 {[%clk 0:02:48]} 10. Bh4 {[%clk 0:02:05]}  Be6 {[%clk 0:02:14]} 11. cxd4 {[%clk 0:01:40]}  Bb4+ {[%clk 0:02:07]} 12. Nc3 {[%clk 0:01:18]}  Bxb3 {[%clk 0:02:03]} 13. Qxb3 {[%clk 0:01:15]}  Qxd4 {[%clk 0:01:59]} 14. Bf2 {[%clk 0:01:07]}  Bxc3+ {[%clk 0:01:47]} 15. bxc3 {[%clk 0:00:54]}  Qd6 {[%clk 0:01:45]} 16. Rd1 {[%clk 0:00:51]}  Qe7 {[%clk 0:01:44]} 17. O-O {[%clk 0:00:48]}  O-O {[%clk 0:01:43]} 18. Rd3 {[%clk 0:00:41]}  Rfd8 {[%clk 0:01:42]} 19. Rfd1 {[%clk 0:00:42]}  Rxd3 {[%clk 0:01:41]} 20. Rxd3 {[%clk 0:00:42]}  Rd8 {[%clk 0:01:41]} 21. Qd1 {[%clk 0:00:42]}  Rc8 {[%clk 0:01:34]} 22. Bc4 {[%clk 0:00:20]}  Na5 {[%clk 0:01:16]} 23. Bd5 {[%clk 0:00:20]}  Nc4 {[%clk 0:01:12]} 24. Qb3 {[%clk 0:00:15]}  Na5 {[%clk 0:01:05]} 25. Qb5 {[%clk 0:00:12]}  b6 {[%clk 0:01:02]} 26. Qb4 {[%clk 0:00:08]}  Qxb4 {[%clk 0:00:59]} 27. cxb4 {[%clk 0:00:09]}  Rc1+ {[%clk 0:00:59]} 28. Be1 {[%clk 0:00:09]}  Rxe1+ {[%clk 0:00:59]} 29. Kf2 {[%clk 0:00:10]}  Rc1 {[%clk 0:00:51]} 30. bxa5 {[%clk 0:00:10]}  bxa5 {[%clk 0:00:51]} 31. Bb3 {[%clk 0:00:10]}  Rc7 {[%clk 0:00:44]} 32. Rd8+ {[%clk 0:00:10]}  Kh7 {[%clk 0:00:44]} 33. Rd6 {[%clk 0:00:10]}  Rb7 {[%clk 0:00:30]} 34. Ra6 {[%clk 0:00:09]}  Kg8 {[%clk 0:00:25]} 35. Rxa5 {[%clk 0:00:09]}  Nd7 {[%clk 0:00:24]} 36. Bd5 {[%clk 0:00:07]}  Rc7 {[%clk 0:00:24]} 37. Bb3 {[%clk 0:00:05]}  Kf8 {[%clk 0:00:24]} 38. Rb5 {[%clk 0:00:05]}  Ke7 {[%clk 0:00:22]} 39. Bd5 {[%clk 0:00:05]}  f6 {[%clk 0:00:22]} 40. Kg3 {[%clk 0:00:05]}  Nb6 {[%clk 0:00:20]} 41. h4 {[%clk 0:00:04]}  h5 {[%clk 0:00:19]} 42. Bb3 {[%clk 0:00:04]}  Kd6 {[%clk 0:00:19]} 43. Ra5 {[%clk 0:00:04]}  g5 {[%clk 0:00:17]} 44. Rb5 {[%clk 0:00:04]}  gxh4+ {[%clk 0:00:16]} 45. Kxh4 {[%clk 0:00:05]}  Rg7 {[%clk 0:00:17]} 46. g4 {[%clk 0:00:05]}  hxg4 {[%clk 0:00:17]} 47. fxg4 {[%clk 0:00:06]}  Rc7 {[%clk 0:00:17]} 48. Rb4 {[%clk 0:00:06]}  Rc1 {[%clk 0:00:15]} 49. Rb5 {[%clk 0:00:06]}  Ke7 {[%clk 0:00:15]} 50. Ra5 {[%clk 0:00:06]}  Rc7 {[%clk 0:00:15]} 51. Rb5 {[%clk 0:00:06]}  Nc8 {[%clk 0:00:15]} 52. Bd5 {[%clk 0:00:06]}  Nd6 {[%clk 0:00:15]} 53. Rb8 {[%clk 0:00:07]}  Rc8 {[%clk 0:00:15]} 54. Rxc8 {[%clk 0:00:04]}  Nxc8 {[%clk 0:00:16]} 55. g5 {[%clk 0:00:05]}  fxg5+ {[%clk 0:00:15]} 56. Kxg5 {[%clk 0:00:06]}  Kd6 {[%clk 0:00:16]} 57. Kf5 {[%clk 0:00:06]}  Nb6 {[%clk 0:00:16]} 58. Bb3 {[%clk 0:00:07]}  Nd7 {[%clk 0:00:15]} 59. a4 {[%clk 0:00:07]}  Nc5 {[%clk 0:00:16]} 60. Bc2 {[%clk 0:00:07]}  a5 {[%clk 0:00:16]} 61. Kf6 {[%clk 0:00:07]}  Na6 {[%clk 0:00:15]} 62. Kf5 {[%clk 0:00:07]}  Nb4 {[%clk 0:00:16]} 63. Bb1 {[%clk 0:00:07]}  Nc6 {[%clk 0:00:16]} 64. Bd3 {[%clk 0:00:05]}  Kc5 {[%clk 0:00:16]} 65. Bb5 {[%clk 0:00:04]}  Nd4+ {[%clk 0:00:15]} 66. Kxe5 {[%clk 0:00:05]}  Nxb5 {[%clk 0:00:15]} 67. axb5 {[%clk 0:00:05]}  a4 {[%clk 0:00:15]} 68. b6 {[%clk 0:00:05]}  Kxb6 {[%clk 0:00:14]} 69. Kd4 {[%clk 0:00:05]}  a3 {[%clk 0:00:15]} 70. Kc3 {[%clk 0:00:06]}  a2 {[%clk 0:00:15]} 71. Kb2 {[%clk 0:00:07]}  Kc5 {[%clk 0:00:15]} 72. Kxa2 {[%clk 0:00:07]}  Kd4 {[%clk 0:00:16]} 73. Kb2 {[%clk 0:00:07]}  Kxe4 {[%clk 0:00:16]} 1/2-1/2


[Site "https://www.chess.com"]

[Event "Titled Tuesday Blitz January 10 Early 2023"]
[White "Defend, Balint"]
[Black "Dilmukhametov, Artur"]
[WhiteFideId "17004853"]
[BlackFideId "24179922"]
[WhiteElo "1673"]
[BlackElo "2276"]
[Result "1-0"]
[Round "02"]
[TimeControl "180+2"]
[Date "2023.01.10"]
[WhiteClock "0:02:31"]
[BlackClock "0:02:42"]

1. e4 {[%clk 0:03:00]}  e6 {[%clk 0:02:59]} 2. d4 {[%clk 0:03:00]}  d5 {[%clk 0:02:59]} 3. Nc3 {[%clk 0:03:01]}  Bb4 {[%clk 0:02:57]} 4. e5 {[%clk 0:03:01]}  c5 {[%clk 0:02:56]} 5. a3 {[%clk 0:03:02]}  Bxc3+ {[%clk 0:02:54]} 6. bxc3 {[%clk 0:03:03]}  Qa5 {[%clk 0:02:54]} 7. Bd2 {[%clk 0:03:01]}  Qa4 {[%clk 0:02:54]} 8. Qg4 {[%clk 0:02:48]}  Kf8 {[%clk 0:02:53]} 9. Be2 {[%clk 0:02:44]}  Qxc2 {[%clk 0:02:50]} 10. dxc5 {[%clk 0:02:43]}  Nc6 {[%clk 0:02:48]} 11. Nf3 {[%clk 0:02:39]}  Nge7 {[%clk 0:02:47]} 12. O-O {[%clk 0:02:36]}  Nf5 {[%clk 0:02:43]} 13. Rfc1 {[%clk 0:02:32]}  Qa4 {[%clk 0:02:42]} 14. Qxa4 {[%clk 0:02:31]} 1-0


[Site "https://www.chess.com"]

[Event "Titled Tuesday Blitz January 10 Early 2023"]
[White "Ankerst, Mihael"]
[Black "Mika, Tomasz"]
[WhiteFideId "14602369"]
[BlackFideId "1132970"]
[WhiteElo "2370"]
[BlackElo "2169"]
[Result "0-1"]
[Round "02"]
[TimeControl "180+2"]
[Date "2023.01.10"]
[WhiteClock "0:00:36"]
[BlackClock "0:01:23"]

1. e4 {[%clk 0:02:51]}  c6 {[%clk 0:02:59]} 2. d4 {[%clk 0:02:50]}  d5 {[%clk 0:03:00]} 3. e5 {[%clk 0:02:51]}  Bf5 {[%clk 0:03:00]} 4. Nf3 {[%clk 0:02:51]}  e6 {[%clk 0:03:00]} 5. Be2 {[%clk 0:02:52]}  c5 {[%clk 0:03:00]} 6. c4 {[%clk 0:02:50]}  cxd4 {[%clk 0:02:55]} 7. Nxd4 {[%clk 0:02:50]}  Bb4+ {[%clk 0:02:55]} 8. Nc3 {[%clk 0:02:49]}  Ne7 {[%clk 0:02:39]} 9. O-O {[%clk 0:02:39]}  Bxc3 {[%clk 0:02:29]} 10. bxc3 {[%clk 0:02:38]}  O-O {[%clk 0:02:30]} 11. Nxf5 {[%clk 0:02:27]}  Nxf5 {[%clk 0:02:24]} 12. Bf3 {[%clk 0:02:21]}  Nh4 {[%clk 0:02:13]} 13. Rb1 {[%clk 0:01:54]}  Nxf3+ {[%clk 0:02:10]} 14. Qxf3 {[%clk 0:01:53]}  Nc6 {[%clk 0:02:08]} 15. cxd5 {[%clk 0:01:45]}  exd5 {[%clk 0:02:06]} 16. Bf4 {[%clk 0:01:37]}  Qd7 {[%clk 0:02:00]} 17. Rfd1 {[%clk 0:01:34]}  Rfd8 {[%clk 0:01:44]} 18. Bg5 {[%clk 0:01:22]}  Nxe5 {[%clk 0:01:42]} 19. Qg3 {[%clk 0:01:22]}  Re8 {[%clk 0:01:39]} 20. Bf6 {[%clk 0:01:17]}  Ng6 {[%clk 0:01:39]} 21. Bd4 {[%clk 0:01:15]}  b6 {[%clk 0:01:36]} 22. h4 {[%clk 0:01:15]}  h5 {[%clk 0:01:34]} 23. a4 {[%clk 0:00:56]}  Re4 {[%clk 0:01:29]} 24. a5 {[%clk 0:00:45]}  Rg4 {[%clk 0:01:29]} 25. Qf3 {[%clk 0:00:36]}  Nxh4 {[%clk 0:01:23]} 0-1


[Site "https://www.chess.com"]

[Event "Titled Tuesday Blitz January 10 Early 2023"]
[White "Reprintsev, Alexander"]
[Black "Broca Jimenez, Fernando"]
[WhiteFideId "14100541"]
[BlackFideId "5104742"]
[WhiteElo "2253"]
[BlackElo "2075"]
[Result "1-0"]
[Round "02"]
[TimeControl "180+2"]
[Date "2023.01.10"]
[WhiteClock "0:01:25"]
[BlackClock "0:00:04"]

1. e4 {[%clk 0:02:57]}  c5 {[%clk 0:02:53]} 2. b3 {[%clk 0:02:57]}  Nc6 {[%clk 0:02:46]} 3. Bb2 {[%clk 0:02:56]}  d6 {[%clk 0:02:47]} 4. Bb5 {[%clk 0:02:56]}  Bd7 {[%clk 0:02:44]} 5. Ne2 {[%clk 0:02:56]}  Nf6 {[%clk 0:02:43]} 6. f3 {[%clk 0:02:53]}  g6 {[%clk 0:02:42]} 7. d4 {[%clk 0:02:52]}  cxd4 {[%clk 0:02:41]} 8. Nxd4 {[%clk 0:02:52]}  Bg7 {[%clk 0:02:42]} 9. Nc3 {[%clk 0:02:46]}  O-O {[%clk 0:02:35]} 10. a4 {[%clk 0:02:34]}  Rc8 {[%clk 0:01:57]} 11. Bxc6 {[%clk 0:02:32]}  Bxc6 {[%clk 0:01:56]} 12. O-O {[%clk 0:02:25]}  Qb6 {[%clk 0:01:14]} 13. Kh1 {[%clk 0:02:24]}  Ng4 {[%clk 0:00:42]} 14. Nxc6 {[%clk 0:02:19]}  Rxc6 {[%clk 0:00:40]} 15. Nd5 {[%clk 0:02:12]}  Nf2+ {[%clk 0:00:39]} 16. Rxf2 {[%clk 0:02:11]}  Qxf2 {[%clk 0:00:40]} 17. Nxe7+ {[%clk 0:02:11]}  Kh8 {[%clk 0:00:39]} 18. Bxg7+ {[%clk 0:02:12]}  Kxg7 {[%clk 0:00:40]} 19. Nxc6 {[%clk 0:02:12]}  bxc6 {[%clk 0:00:40]} 20. c4 {[%clk 0:02:05]}  Qc5 {[%clk 0:00:30]} 21. Qd3 {[%clk 0:02:02]}  Rd8 {[%clk 0:00:22]} 22. Rd1 {[%clk 0:02:01]}  a5 {[%clk 0:00:20]} 23. Qd4+ {[%clk 0:02:01]}  Qxd4 {[%clk 0:00:19]} 24. Rxd4 {[%clk 0:02:02]}  Kf6 {[%clk 0:00:19]} 25. f4 {[%clk 0:01:59]}  Ke6 {[%clk 0:00:19]} 26. g3 {[%clk 0:01:58]}  Rb8 {[%clk 0:00:19]} 27. Rd3 {[%clk 0:01:57]}  f5 {[%clk 0:00:18]} 28. exf5+ {[%clk 0:01:57]}  Kxf5 {[%clk 0:00:19]} 29. Kg2 {[%clk 0:01:37]}  Ke6 {[%clk 0:00:15]} 30. Kf3 {[%clk 0:01:36]}  d5 {[%clk 0:00:12]} 31. cxd5+ {[%clk 0:01:35]}  cxd5 {[%clk 0:00:13]} 32. Ke3 {[%clk 0:01:33]}  Kd6 {[%clk 0:00:13]} 33. Rc3 {[%clk 0:01:29]}  Re8+ {[%clk 0:00:11]} 34. Kd3 {[%clk 0:01:29]}  Re7 {[%clk 0:00:09]} 35. Rc8 {[%clk 0:01:28]}  Re1 {[%clk 0:00:08]} 36. Ra8 {[%clk 0:01:27]}  Rb1 {[%clk 0:00:04]} 37. Kc3 {[%clk 0:01:25]}  Rh1 {[%clk 0:00:05]} 38. Ra6+ {[%clk 0:01:24]}  Kd7 {[%clk 0:00:04]} 39. Rxa5 {[%clk 0:01:25]}  Rxh2 {[%clk 0:00:04]} 40. Rxd5+ {[%clk 0:01:25]}  Ke6 {[%clk 0:00:04]} 41. Rd3 {[%clk 0:01:25]} 1-0


[Site "https://www.chess.com"]

[Event "Titled Tuesday Blitz January 10 Early 2023"]
[White "Zanette, Edgard Vinicius"]
[Black "surrenderPLS"]
[WhiteFideId "2109263"]
[WhiteElo "2085"]
[BlackElo "2533"]
[Result "0-1"]
[Round "02"]
[TimeControl "180+2"]
[Date "2023.01.10"]
[WhiteClock "0:00:03"]
[BlackClock "0:00:18"]

1. e4 {[%clk 0:02:58]}  c5 {[%clk 0:02:59]} 2. Nf3 {[%clk 0:02:57]}  d6 {[%clk 0:03:00]} 3. d4 {[%clk 0:02:57]}  cxd4 {[%clk 0:03:00]} 4. Nxd4 {[%clk 0:02:58]}  Nf6 {[%clk 0:03:01]} 5. Nc3 {[%clk 0:02:58]}  a6 {[%clk 0:03:00]} 6. Bg5 {[%clk 0:02:56]}  e6 {[%clk 0:03:00]} 7. f4 {[%clk 0:02:56]}  Be7 {[%clk 0:03:00]} 8. Qf3 {[%clk 0:02:56]}  Qc7 {[%clk 0:03:00]} 9. O-O-O {[%clk 0:02:56]}  Nbd7 {[%clk 0:02:59]} 10. g4 {[%clk 0:02:52]}  b5 {[%clk 0:02:58]} 11. Bxf6 {[%clk 0:02:52]}  Nxf6 {[%clk 0:02:58]} 12. g5 {[%clk 0:02:50]}  Nd7 {[%clk 0:02:58]} 13. a3 {[%clk 0:02:39]}  Bb7 {[%clk 0:02:52]} 14. Kb1 {[%clk 0:02:34]}  Rc8 {[%clk 0:02:23]} 15. h4 {[%clk 0:02:29]}  Nc5 {[%clk 0:01:57]} 16. Rh2 {[%clk 0:02:09]}  h6 {[%clk 0:01:36]} 17. g6 {[%clk 0:02:03]}  f5 {[%clk 0:01:35]} 18. Bd3 {[%clk 0:01:47]}  Bf6 {[%clk 0:01:33]} 19. Ndxb5 {[%clk 0:01:31]}  axb5 {[%clk 0:01:19]} 20. Nxb5 {[%clk 0:01:30]}  Qb6 {[%clk 0:01:19]} 21. Nxd6+ {[%clk 0:01:29]}  Kf8 {[%clk 0:01:11]} 22. Nc4 {[%clk 0:01:27]}  Qc7 {[%clk 0:00:55]} 23. Qf1 {[%clk 0:01:19]}  fxe4 {[%clk 0:00:47]} 24. Be2 {[%clk 0:01:13]}  Na4 {[%clk 0:00:47]} 25. Qh3 {[%clk 0:01:00]}  Nxb2 {[%clk 0:00:44]} 26. Qxe6 {[%clk 0:00:39]}  Nxd1 {[%clk 0:00:36]} 27. Bg4 {[%clk 0:00:18]}  Nc3+ {[%clk 0:00:33]} 28. Kc1 {[%clk 0:00:18]}  Qxc4 {[%clk 0:00:31]} 29. Qd6+ {[%clk 0:00:15]}  Be7 {[%clk 0:00:29]} 30. Qe5 {[%clk 0:00:09]}  Bxa3+ {[%clk 0:00:22]} 31. Kd2 {[%clk 0:00:08]}  Rd8+ {[%clk 0:00:19]} 32. Ke3 {[%clk 0:00:03]}  Bc5+ {[%clk 0:00:18]} 0-1


[Site "https://www.chess.com"]

[Event "Titled Tuesday Blitz January 10 Early 2023"]
[White "Gheorghiu, Calin"]
[Black "Blokhin, Sofia"]
[WhiteFideId "1200305"]
[BlackFideId "4508190"]
[WhiteElo "2313"]
[BlackElo "2062"]
[Result "1-0"]
[Round "02"]
[TimeControl "180+2"]
[Date "2023.01.10"]
[WhiteClock "0:00:09"]
[BlackClock "0:00:04"]

1. b3 {[%clk 0:03:00]}  d5 {[%clk 0:02:58]} 2. Bb2 {[%clk 0:03:00]}  e6 {[%clk 0:02:58]} 3. Nf3 {[%clk 0:03:00]}  Nf6 {[%clk 0:02:59]} 4. g3 {[%clk 0:02:59]}  Be7 {[%clk 0:02:59]} 5. Bg2 {[%clk 0:02:59]}  O-O {[%clk 0:02:58]} 6. O-O {[%clk 0:03:00]}  c5 {[%clk 0:02:58]} 7. d3 {[%clk 0:03:00]}  Nc6 {[%clk 0:02:56]} 8. Nbd2 {[%clk 0:02:58]}  b6 {[%clk 0:02:48]} 9. e4 {[%clk 0:02:56]}  Bb7 {[%clk 0:02:42]} 10. Re1 {[%clk 0:02:52]}  d4 {[%clk 0:02:38]} 11. e5 {[%clk 0:02:40]}  Nd7 {[%clk 0:02:33]} 12. Qe2 {[%clk 0:02:30]}  Qc7 {[%clk 0:02:32]} 13. h4 {[%clk 0:02:29]}  Nb4 {[%clk 0:02:29]} 14. Nf1 {[%clk 0:02:18]}  Nd5 {[%clk 0:02:08]} 15. h5 {[%clk 0:02:14]}  h6 {[%clk 0:02:07]} 16. N1h2 {[%clk 0:01:40]}  a5 {[%clk 0:02:00]} 17. a4 {[%clk 0:01:35]}  Kh7 {[%clk 0:01:41]} 18. Ng4 {[%clk 0:01:31]}  Bg5 {[%clk 0:01:28]} 19. Nxg5+ {[%clk 0:01:23]}  hxg5 {[%clk 0:01:28]} 20. Bc1 {[%clk 0:01:20]}  Nc3 {[%clk 0:01:18]} 21. Qf1 {[%clk 0:01:18]}  f6 {[%clk 0:01:03]} 22. exf6 {[%clk 0:01:05]}  Nxf6 {[%clk 0:00:49]} 23. Nxf6+ {[%clk 0:00:58]}  gxf6 {[%clk 0:00:48]} 24. Rxe6 {[%clk 0:00:46]}  Rae8 {[%clk 0:00:49]} 25. Rxe8 {[%clk 0:00:38]}  Rxe8 {[%clk 0:00:47]} 26. Bd2 {[%clk 0:00:38]}  Qf7 {[%clk 0:00:19]} 27. Bxc3 {[%clk 0:00:32]}  dxc3 {[%clk 0:00:18]} 28. Bxb7 {[%clk 0:00:29]}  Qxb7 {[%clk 0:00:19]} 29. Re1 {[%clk 0:00:29]}  Rf8 {[%clk 0:00:14]} 30. Qe2 {[%clk 0:00:23]}  Rf7 {[%clk 0:00:13]} 31. Qg4 {[%clk 0:00:18]}  Qd5 {[%clk 0:00:09]} 32. Re8 {[%clk 0:00:11]}  Kg7 {[%clk 0:00:08]} 33. Qc8 {[%clk 0:00:10]}  f5 {[%clk 0:00:04]} 34. Rg8+ {[%clk 0:00:09]}  Kf6 {[%clk 0:00:05]} 35. Rg6+ {[%clk 0:00:09]}  Ke7 {[%clk 0:00:05]} 36. Qc7+ {[%clk 0:00:09]}  Qd7 {[%clk 0:00:04]} 37. Qe5+ {[%clk 0:00:09]}  Kd8 {[%clk 0:00:04]} 38. Rg8+ {[%clk 0:00:09]} 1-0


[Site "https://www.chess.com"]

[Event "Titled Tuesday Blitz January 10 Early 2023"]
[White "Slovineanu, Viacheslav"]
[Black "Nguyen Hong Nhung"]
[WhiteFideId "13900510"]
[BlackFideId "12412201"]
[WhiteElo "2412"]
[BlackElo "2003"]
[Result "0-1"]
[Round "02"]
[TimeControl "180+2"]
[Date "2023.01.10"]
[WhiteClock "0:00:03"]
[BlackClock "0:00:45"]

1. e4 {[%clk 0:03:00]}  c5 {[%clk 0:02:59]} 2. Nf3 {[%clk 0:03:00]}  e6 {[%clk 0:03:00]} 3. d4 {[%clk 0:03:00]}  cxd4 {[%clk 0:03:01]} 4. Nxd4 {[%clk 0:03:01]}  Nc6 {[%clk 0:03:01]} 5. Nc3 {[%clk 0:03:01]}  Qc7 {[%clk 0:03:01]} 6. f3 {[%clk 0:02:55]}  a6 {[%clk 0:03:01]} 7. Be3 {[%clk 0:02:54]}  Nf6 {[%clk 0:03:02]} 8. Qd2 {[%clk 0:02:48]}  Ne5 {[%clk 0:03:02]} 9. O-O-O {[%clk 0:02:44]}  Bb4 {[%clk 0:03:02]} 10. Nde2 {[%clk 0:02:05]}  b5 {[%clk 0:02:54]} 11. Bf4 {[%clk 0:01:37]}  d6 {[%clk 0:02:45]} 12. Kb1 {[%clk 0:01:28]}  Bc5 {[%clk 0:02:38]} 13. Nd4 {[%clk 0:01:05]}  Bb7 {[%clk 0:02:10]} 14. Bxb5+ {[%clk 0:00:53]}  axb5 {[%clk 0:02:11]} 15. Ndxb5 {[%clk 0:00:53]}  Qb6 {[%clk 0:01:55]} 16. Nxd6+ {[%clk 0:00:54]}  Bxd6 {[%clk 0:01:54]} 17. Qxd6 {[%clk 0:00:54]}  Qxd6 {[%clk 0:01:54]} 18. Rxd6 {[%clk 0:00:54]}  Ned7 {[%clk 0:01:42]} 19. Rhd1 {[%clk 0:00:51]}  e5 {[%clk 0:01:26]} 20. Be3 {[%clk 0:00:46]}  Ke7 {[%clk 0:01:24]} 21. R6d2 {[%clk 0:00:36]}  Rhd8 {[%clk 0:01:22]} 22. a3 {[%clk 0:00:26]}  Bc6 {[%clk 0:01:21]} 23. Ka2 {[%clk 0:00:22]}  Rdb8 {[%clk 0:01:00]} 24. b3 {[%clk 0:00:15]}  Nf8 {[%clk 0:00:57]} 25. Bc5+ {[%clk 0:00:13]}  Ke8 {[%clk 0:00:57]} 26. Bxf8 {[%clk 0:00:11]}  Kxf8 {[%clk 0:00:58]} 27. Nb1 {[%clk 0:00:09]}  Ke7 {[%clk 0:00:55]} 28. c4 {[%clk 0:00:09]}  Nd7 {[%clk 0:00:53]} 29. Nc3 {[%clk 0:00:08]}  Nc5 {[%clk 0:00:51]} 30. b4 {[%clk 0:00:06]}  Rxb4 {[%clk 0:00:50]} 31. Nd5+ {[%clk 0:00:05]}  Bxd5 {[%clk 0:00:49]} 32. Rxd5 {[%clk 0:00:03]}  Rb3 {[%clk 0:00:45]} 0-1


[Site "https://www.chess.com"]